[Event "Late-Titled-Tuesday-Blitz-March-19-2024"]
[Site "Chess.com"]
[Date "2024.03.19"]
[Round "11"]
[White "cthake"]
[Black "cristiano78"]
[Result "1/2-1/2"]
[WhiteElo "1837"]
[BlackElo "2230"]
[TimeControl "180+1"]
[EndTime "16:04:59 PDT"]
[Termination "Game drawn by repetition"]

1. c4 {[%clk 0:03:00.9]} 1... Nf6 {[%clk 0:02:57.8]} 2. Nc3 {[%clk 0:02:58.3]}
2... g6 {[%clk 0:02:58]} 3. d3 {[%clk 0:02:58.2]} 3... Bg7 {[%clk 0:02:58]} 4.
e4 {[%clk 0:02:58.3]} 4... d6 {[%clk 0:02:58]} 5. g3 {[%clk 0:02:58.6]} 5... O-O
{[%clk 0:02:58.1]} 6. Bg2 {[%clk 0:02:58.9]} 6... c5 {[%clk 0:02:57.7]} 7. Nge2
{[%clk 0:02:58.8]} 7... Nc6 {[%clk 0:02:58.4]} 8. O-O {[%clk 0:02:57.9]} 8...
Ne8 {[%clk 0:02:58.8]} 9. Be3 {[%clk 0:02:55.2]} 9... Nc7 {[%clk 0:02:59.1]} 10.
f4 {[%clk 0:02:54.5]} 10... Ne6 {[%clk 0:02:58.4]} 11. Qd2 {[%clk 0:02:52.2]}
11... Ned4 {[%clk 0:02:58.8]} 12. Rf2 {[%clk 0:02:45.2]} 12... Nxe2+ {[%clk
0:02:42.2]} 13. Nxe2 {[%clk 0:02:44.3]} 13... Nd4 {[%clk 0:02:39.2]} 14. Raf1
{[%clk 0:02:40.9]} 14... Bg4 {[%clk 0:02:36.1]} 15. Nc1 {[%clk 0:02:27.8]} 15...
Rb8 {[%clk 0:02:33]} 16. h3 {[%clk 0:02:26.4]} 16... Bd7 {[%clk 0:02:32.9]} 17.
Kh2 {[%clk 0:02:11.7]} 17... b5 {[%clk 0:02:32]} 18. b3 {[%clk 0:02:09]} 18...
bxc4 {[%clk 0:02:31.6]} 19. dxc4 {[%clk 0:02:02.7]} 19... a5 {[%clk 0:02:31.5]}
20. Ne2 {[%clk 0:02:01.6]} 20... Nxe2 {[%clk 0:02:28.2]} 21. Qxe2 {[%clk
0:02:00.8]} 21... a4 {[%clk 0:02:28.4]} 22. bxa4 {[%clk 0:01:40.3]} 22... Qa5
{[%clk 0:02:25]} 23. f5 {[%clk 0:01:38.5]} 23... Qxa4 {[%clk 0:02:23.2]} 24.
fxg6 {[%clk 0:01:37.9]} 24... fxg6 {[%clk 0:02:22.4]} 25. Rxf8+ {[%clk
0:01:37.2]} 25... Rxf8 {[%clk 0:02:22.1]} 26. Rxf8+ {[%clk 0:01:36.9]} 26...
Bxf8 {[%clk 0:02:22.3]} 27. Bg5 {[%clk 0:01:06.4]} 27... Be6 {[%clk 0:02:19.9]}
28. Bf1 {[%clk 0:01:03.2]} 28... h6 {[%clk 0:02:13]} 29. Bf4 {[%clk 0:00:59.5]}
29... Bg7 {[%clk 0:02:06.9]} 30. e5 {[%clk 0:00:56.7]} 30... g5 {[%clk
0:02:01.1]} 31. exd6 {[%clk 0:00:47.4]} 31... Kf7 {[%clk 0:01:58.9]} 32. Be5
{[%clk 0:00:38.2]} 32... Bxe5 {[%clk 0:01:51.6]} 33. Qxe5 {[%clk 0:00:38.1]}
33... Qxa2+ {[%clk 0:01:49]} 34. Bg2 {[%clk 0:00:37.6]} 34... exd6 {[%clk
0:01:47.4]} 35. Qxd6 {[%clk 0:00:36.7]} 35... Qxc4 {[%clk 0:01:38.7]} 36. Qc7+
{[%clk 0:00:36.6]} 36... Kf6 {[%clk 0:01:38.1]} 37. Qd8+ {[%clk 0:00:36.4]}
37... Kg7 {[%clk 0:01:37]} 38. Qe7+ {[%clk 0:00:36.2]} 38... Bf7 {[%clk
0:01:36.9]} 39. Qe5+ {[%clk 0:00:36.3]} 39... Kf8 {[%clk 0:01:33.9]} 40. Qd6+
{[%clk 0:00:35.8]} 40... Kg7 {[%clk 0:01:33.9]} 41. Qe5+ {[%clk 0:00:36]} 41...
Kf8 {[%clk 0:01:33.9]} 42. Qd6+ {[%clk 0:00:36.4]} 42... Kg8 {[%clk 0:01:32.3]}
43. Qd8+ {[%clk 0:00:34.1]} 43... Kg7 {[%clk 0:01:32]} 44. Qd6 {[%clk
0:00:31.9]} 44... Qd4 {[%clk 0:01:30.8]} 45. Qc7 {[%clk 0:00:23.5]} 45... c4
{[%clk 0:01:24.3]} 46. Qc6 {[%clk 0:00:16.2]} 46... c3 {[%clk 0:01:23.5]} 47.
Kh1 {[%clk 0:00:09.5]} 47... Qd1+ {[%clk 0:01:11]} 48. Kh2 {[%clk 0:00:09.5]}
48... Qe1 {[%clk 0:00:58.2]} 49. Qc5 {[%clk 0:00:07]} 49... Qd2 {[%clk
0:00:51.9]} 50. Qe5+ {[%clk 0:00:04.8]} 50... Kf8 {[%clk 0:00:50.8]} 51. Qb8+
{[%clk 0:00:03.9]} 51... Ke7 {[%clk 0:00:51.1]} 52. Qe5+ {[%clk 0:00:03.6]}
52... Kd8 {[%clk 0:00:50.2]} 53. Qb8+ {[%clk 0:00:03.6]} 53... Ke7 {[%clk
0:00:50.2]} 54. Qe5+ {[%clk 0:00:03.7]} 54... Kf8 {[%clk 0:00:50]} 55. Qh8+
{[%clk 0:00:03.1]} 55... Ke7 {[%clk 0:00:48.1]} 56. Qe5+ {[%clk 0:00:03.2]}
1/2-1/2

[Event "Late-Titled-Tuesday-Blitz-March-19-2024"]
[Site "Chess.com"]
[Date "2024.03.19"]
[Round "11"]
[White "ChristopherYoo"]
[Black "Kampkatten"]
[Result "0-1"]
[WhiteElo "2943"]
[BlackElo "2854"]
[TimeControl "180+1"]
[EndTime "16:05:06 PDT"]
[Termination "Kampkatten won by resignation"]

1. d4 {[%clk 0:03:00.9]} 1... d5 {[%clk 0:02:59.9]} 2. c4 {[%clk 0:03:01.3]}
2... dxc4 {[%clk 0:03:00.8]} 3. Nf3 {[%clk 0:03:00.9]} 3... Nf6 {[%clk
0:03:01.2]} 4. e3 {[%clk 0:03:01]} 4... e6 {[%clk 0:03:01.8]} 5. Bxc4 {[%clk
0:03:00.9]} 5... c5 {[%clk 0:03:02.6]} 6. O-O {[%clk 0:03:00.4]} 6... a6 {[%clk
0:03:03.3]} 7. Be2 {[%clk 0:03:00.5]} 7... Nbd7 {[%clk 0:03:00]} 8. b3 {[%clk
0:02:59.4]} 8... b6 {[%clk 0:02:58.5]} 9. Bb2 {[%clk 0:02:58.8]} 9... Bb7 {[%clk
0:02:58.6]} 10. Nbd2 {[%clk 0:02:58.5]} 10... Be7 {[%clk 0:02:57.6]} 11. dxc5
{[%clk 0:02:59.1]} 11... Nxc5 {[%clk 0:02:52]} 12. Nc4 {[%clk 0:02:59.8]} 12...
b5 {[%clk 0:02:45.1]} 13. Qxd8+ {[%clk 0:02:59.7]} 13... Rxd8 {[%clk 0:02:43.1]}
14. Na5 {[%clk 0:03:00.3]} 14... Bd5 {[%clk 0:02:40.2]} 15. Ne5 {[%clk
0:02:59.9]} 15... Rc8 {[%clk 0:02:21.3]} 16. Rac1 {[%clk 0:02:58.6]} 16... O-O
{[%clk 0:02:20.8]} 17. f3 {[%clk 0:02:58.6]} 17... Ba8 {[%clk 0:01:58.9]} 18.
Bd4 {[%clk 0:02:48.6]} 18... Nd5 {[%clk 0:01:53.1]} 19. Nac6 {[%clk 0:02:33.8]}
19... Bxc6 {[%clk 0:01:47]} 20. Bxc5 {[%clk 0:02:34.2]} 20... Bxc5 {[%clk
0:01:33]} 21. Rxc5 {[%clk 0:02:35.1]} 21... Bb7 {[%clk 0:01:33.7]} 22. Rfc1
{[%clk 0:02:32.7]} 22... Rxc5 {[%clk 0:01:33.1]} 23. Rxc5 {[%clk 0:02:32.5]}
23... Rc8 {[%clk 0:01:34]} 24. Rxc8+ {[%clk 0:02:23.7]} 24... Bxc8 {[%clk
0:01:34.9]} 25. Kf2 {[%clk 0:02:24.4]} 25... Nc3 {[%clk 0:01:28.2]} 26. a3
{[%clk 0:02:25]} 26... Kf8 {[%clk 0:01:17.9]} 27. e4 {[%clk 0:02:23.8]} 27... f6
{[%clk 0:01:11.4]} 28. Nc6 {[%clk 0:02:21.4]} 28... Ke8 {[%clk 0:01:01.8]} 29.
Ke3 {[%clk 0:02:17.2]} 29... Kd7 {[%clk 0:00:59.6]} 30. Na5 {[%clk 0:02:17.3]}
30... Nb1 {[%clk 0:00:51.5]} 31. Bd3 {[%clk 0:02:17.1]} 31... Nxa3 {[%clk
0:00:50.5]} 32. Kd4 {[%clk 0:02:17.8]} 32... Kd6 {[%clk 0:00:41.5]} 33. b4
{[%clk 0:02:16.8]} 33... e5+ {[%clk 0:00:35.4]} 34. Kc3 {[%clk 0:02:17.2]} 34...
Be6 {[%clk 0:00:34.2]} 35. Nb7+ {[%clk 0:02:17.7]} 35... Kc6 {[%clk 0:00:28.2]}
36. Nd8+ {[%clk 0:02:07.6]} 36... Kd7 {[%clk 0:00:23.7]} 37. Nxe6 {[%clk
0:02:07.7]} 37... Kxe6 {[%clk 0:00:24.6]} 38. Kb3 {[%clk 0:02:08.1]} 38... Nc4
{[%clk 0:00:22.6]} 39. Bxc4+ {[%clk 0:02:08.3]} 39... bxc4+ {[%clk 0:00:23.5]}
40. Kxc4 {[%clk 0:02:08.5]} 40... Kd6 {[%clk 0:00:20.5]} 41. b5 {[%clk
0:02:08.5]} 41... axb5+ {[%clk 0:00:21.4]} 42. Kxb5 {[%clk 0:02:08.5]} 42... Kd7
{[%clk 0:00:21.1]} 43. Kb6 {[%clk 0:02:07.5]} 43... Kd6 {[%clk 0:00:21.3]} 44.
g3 {[%clk 0:01:55.6]} 44... g6 {[%clk 0:00:19.6]} 45. h4 {[%clk 0:01:51.6]}
45... h5 {[%clk 0:00:19.5]} 46. g4 {[%clk 0:01:35.4]} 46... hxg4 {[%clk
0:00:17.1]} 47. fxg4 {[%clk 0:01:35.9]} 47... f5 {[%clk 0:00:17.4]} 48. gxf5
{[%clk 0:01:18.8]} 48... gxf5 {[%clk 0:00:18.3]} 49. h5 {[%clk 0:01:18.4]} 49...
Ke7 {[%clk 0:00:14.1]} 50. h6 {[%clk 0:01:18.7]} 50... Kf7 {[%clk 0:00:12.8]}
51. exf5 {[%clk 0:00:52]} 51... e4 {[%clk 0:00:13.7]} 52. Kc5 {[%clk 0:00:47.8]}
52... e3 {[%clk 0:00:13.7]} 53. h7 {[%clk 0:00:47.6]} 53... Kg7 {[%clk
0:00:13.6]} 54. f6+ {[%clk 0:00:48]} 54... Kxh7 {[%clk 0:00:13]} 55. Kd6 {[%clk
0:00:44.6]} 55... e2 {[%clk 0:00:13.1]} 56. Ke7 {[%clk 0:00:37.3]} 56... e1=Q+
{[%clk 0:00:12.8]} 57. Kf8 {[%clk 0:00:38.2]} 57... Qb4+ {[%clk 0:00:12.2]} 58.
Ke8 {[%clk 0:00:38.2]} 58... Qe4+ {[%clk 0:00:11.8]} 59. Kf8 {[%clk 0:00:38.8]}
59... Kg6 {[%clk 0:00:10.6]} 60. f7 {[%clk 0:00:38.7]} 60... Qe6 {[%clk
0:00:10.7]} 0-1

[Event "Late-Titled-Tuesday-Blitz-March-19-2024"]
[Site "Chess.com"]
[Date "2024.03.19"]
[Round "11"]
[White "egnfanclub"]
[Black "Vadim_Galchenko"]
[Result "0-1"]
[WhiteElo "2386"]
[BlackElo "2581"]
[TimeControl "180+1"]
[EndTime "16:05:06 PDT"]
[Termination "Vadim_Galchenko won on time"]

1. e4 {[%clk 0:03:00.9]} 1... e6 {[%clk 0:03:00.5]} 2. d4 {[%clk 0:03:00.6]}
2... d5 {[%clk 0:03:01.2]} 3. Nc3 {[%clk 0:03:00.6]} 3... Nf6 {[%clk 0:03:01.1]}
4. e5 {[%clk 0:03:00.6]} 4... Ne4 {[%clk 0:03:01.5]} 5. Nf3 {[%clk 0:03:01.5]}
5... Nxc3 {[%clk 0:03:00.9]} 6. bxc3 {[%clk 0:03:02.4]} 6... c5 {[%clk
0:03:01.3]} 7. Be2 {[%clk 0:02:58]} 7... Nc6 {[%clk 0:03:00.7]} 8. h4 {[%clk
0:02:57.9]} 8... Qa5 {[%clk 0:02:57]} 9. Bd2 {[%clk 0:02:57.3]} 9... c4 {[%clk
0:02:56.9]} 10. h5 {[%clk 0:02:56.8]} 10... h6 {[%clk 0:02:57]} 11. Rh3 {[%clk
0:02:41.6]} 11... Bd7 {[%clk 0:02:54.5]} 12. Rg3 {[%clk 0:02:38.9]} 12... Ne7
{[%clk 0:02:52.1]} 13. Nh4 {[%clk 0:02:37.6]} 13... Ba4 {[%clk 0:02:46.2]} 14.
f4 {[%clk 0:02:34.2]} 14... O-O-O {[%clk 0:02:30.2]} 15. Qb1 {[%clk 0:02:19.1]}
15... Kb8 {[%clk 0:02:27]} 16. Bg4 {[%clk 0:02:00.1]} 16... Rc8 {[%clk 0:02:18]}
17. f5 {[%clk 0:01:58.3]} 17... Rc6 {[%clk 0:02:16.8]} 18. fxe6 {[%clk
0:01:56.5]} 18... fxe6 {[%clk 0:02:17.7]} 19. Rf3 {[%clk 0:01:54]} 19... Rb6
{[%clk 0:02:16.7]} 20. Qc1 {[%clk 0:01:48.4]} 20... Qb5 {[%clk 0:02:15.1]} 21.
Rf7 {[%clk 0:01:40.2]} 21... Qb2 {[%clk 0:02:09.1]} 22. Bd1 {[%clk 0:01:32.6]}
22... Be8 {[%clk 0:02:02.6]} 23. Rf2 {[%clk 0:01:29]} 23... g5 {[%clk
0:01:57.2]} 24. hxg6 {[%clk 0:01:09.5]} 24... Nxg6 {[%clk 0:01:57]} 25. Bh5
{[%clk 0:00:56.7]} 25... Nxh4 {[%clk 0:01:33.7]} 26. Bxe8 {[%clk 0:00:56.7]}
26... Be7 {[%clk 0:01:29.1]} 27. Bf7 {[%clk 0:00:27.3]} 27... Rf8 {[%clk
0:01:13.5]} 28. Qxb2 {[%clk 0:00:26.6]} 28... Rxb2 {[%clk 0:01:12.6]} 29. Bxe6
{[%clk 0:00:24.3]} 29... Rxf2 {[%clk 0:01:12.1]} 30. Kxf2 {[%clk 0:00:25.2]}
30... Rxc2 {[%clk 0:01:12.7]} 31. Ke1 {[%clk 0:00:16.6]} 31... Nxg2+ {[%clk
0:01:08.7]} 32. Kd1 {[%clk 0:00:16.5]} 32... Rb2 {[%clk 0:01:09.2]} 33. Bxh6
{[%clk 0:00:15.5]} 33... Rf2 {[%clk 0:01:06]} 34. Rc1 {[%clk 0:00:10.8]} 34...
Ba3 {[%clk 0:00:53.4]} 35. Rc2 {[%clk 0:00:11]} 35... Rf1+ {[%clk 0:00:50.8]}
36. Ke2 {[%clk 0:00:11]} 36... Rh1 {[%clk 0:00:50.4]} 37. Kf2 {[%clk 0:00:10.7]}
37... Ne1 {[%clk 0:00:50]} 38. Bxd5 {[%clk 0:00:09.7]} 38... Nd3+ {[%clk
0:00:49.2]} 39. Ke3 {[%clk 0:00:08.9]} 39... Rxh6 {[%clk 0:00:48.1]} 40. Bxc4
{[%clk 0:00:09.1]} 40... Rh3+ {[%clk 0:00:48.4]} 41. Ke4 {[%clk 0:00:09.3]}
41... Ne1 {[%clk 0:00:48.1]} 42. Rf2 {[%clk 0:00:08.5]} 42... Rh4+ {[%clk
0:00:44.1]} 43. Kd5 {[%clk 0:00:08.8]} 43... a6 {[%clk 0:00:43]} 44. Rf7 {[%clk
0:00:08.5]} 44... Nc2 {[%clk 0:00:41.6]} 45. Bd3 {[%clk 0:00:07.3]} 45... Ne3+
{[%clk 0:00:41.4]} 46. Ke6 {[%clk 0:00:06.2]} 46... Bb2 {[%clk 0:00:37.7]} 47.
d5 {[%clk 0:00:05.5]} 47... Bxc3 {[%clk 0:00:36.6]} 48. d6 {[%clk 0:00:05.4]}
48... Ba5 {[%clk 0:00:35.3]} 49. Rf8+ {[%clk 0:00:04.5]} 49... Ka7 {[%clk
0:00:34.4]} 50. d7 {[%clk 0:00:05.2]} 50... Rd4 {[%clk 0:00:34.3]} 51. Bg6
{[%clk 0:00:04]} 51... Nc4 {[%clk 0:00:31.8]} 0-1

[Event "Late-Titled-Tuesday-Blitz-March-19-2024"]
[Site "Chess.com"]
[Date "2024.03.19"]
[Round "11"]
[White "Piotrek1979"]
[Black "rhungaski"]
[Result "0-1"]
[WhiteElo "2483"]
[BlackElo "2613"]
[TimeControl "180+1"]
[EndTime "16:05:07 PDT"]
[Termination "rhungaski won by checkmate"]

1. c4 {[%clk 0:02:56.2]} 1... Nf6 {[%clk 0:02:59.5]} 2. Nf3 {[%clk 0:02:54.7]}
2... g6 {[%clk 0:02:59.7]} 3. b3 {[%clk 0:02:53.7]} 3... Bg7 {[%clk 0:02:59.6]}
4. Bb2 {[%clk 0:02:54.6]} 4... O-O {[%clk 0:03:00.2]} 5. e3 {[%clk 0:02:54.9]}
5... d6 {[%clk 0:03:00.6]} 6. Be2 {[%clk 0:02:54.9]} 6... e5 {[%clk 0:02:59.9]}
7. d3 {[%clk 0:02:55.4]} 7... Re8 {[%clk 0:02:59.1]} 8. Nbd2 {[%clk 0:02:52.8]}
8... Nbd7 {[%clk 0:02:57.5]} 9. Qc2 {[%clk 0:02:52.4]} 9... c6 {[%clk
0:02:57.7]} 10. O-O {[%clk 0:02:49.9]} 10... d5 {[%clk 0:02:43.6]} 11. cxd5
{[%clk 0:02:48.3]} 11... cxd5 {[%clk 0:02:44.5]} 12. Rfc1 {[%clk 0:02:46.4]}
12... e4 {[%clk 0:02:43]} 13. Nd4 {[%clk 0:02:43.7]} 13... a6 {[%clk 0:02:28.4]}
14. Qc7 {[%clk 0:02:41.2]} 14... Qe7 {[%clk 0:02:27.6]} 15. a4 {[%clk 0:02:37]}
15... h5 {[%clk 0:02:16]} 16. Ba3 {[%clk 0:02:35.2]} 16... Qe5 {[%clk
0:02:16.2]} 17. Qxe5 {[%clk 0:02:31.1]} 17... Nxe5 {[%clk 0:02:17.1]} 18. dxe4
{[%clk 0:02:30.7]} 18... Nxe4 {[%clk 0:02:14.6]} 19. Nxe4 {[%clk 0:02:23]} 19...
dxe4 {[%clk 0:02:15.5]} 20. Bb2 {[%clk 0:02:02.2]} 20... Bg4 {[%clk 0:02:12.2]}
21. Bxg4 {[%clk 0:02:01.4]} 21... hxg4 {[%clk 0:02:13.1]} 22. Rc7 {[%clk
0:01:54]} 22... Nd3 {[%clk 0:02:12.1]} 23. Ba3 {[%clk 0:01:41.4]} 23... b5
{[%clk 0:02:02.1]} 24. Bd6 {[%clk 0:01:35.9]} 24... Rad8 {[%clk 0:01:51.1]} 25.
Bg3 {[%clk 0:01:28.1]} 25... Bxd4 {[%clk 0:00:50.6]} 26. exd4 {[%clk 0:01:29]}
26... Rxd4 {[%clk 0:00:51.1]} 27. axb5 {[%clk 0:01:26.6]} 27... axb5 {[%clk
0:00:52]} 28. h4 {[%clk 0:01:21.6]} 28... gxh3 {[%clk 0:00:51.2]} 29. Raa7
{[%clk 0:01:17.5]} 29... Rf8 {[%clk 0:00:48.8]} 30. gxh3 {[%clk 0:01:07.6]}
30... Rd5 {[%clk 0:00:49.3]} 31. Re7 {[%clk 0:01:03.9]} 31... Nc5 {[%clk
0:00:49.7]} 32. b4 {[%clk 0:01:02.5]} 32... Ne6 {[%clk 0:00:50]} 33. h4 {[%clk
0:00:56.6]} 33... Rf5 {[%clk 0:00:36.9]} 34. Rab7 {[%clk 0:00:48.1]} 34... Rd8
{[%clk 0:00:35.6]} 35. Kh2 {[%clk 0:00:36.7]} 35... Rd2 {[%clk 0:00:33.5]} 36.
Kh3 {[%clk 0:00:36.6]} 36... Rf3 {[%clk 0:00:30.7]} 37. Rxb5 {[%clk 0:00:18.1]}
37... Rdxf2 {[%clk 0:00:23.3]} 38. h5 {[%clk 0:00:11.9]} 38... g5 {[%clk
0:00:11.6]} 39. Rxe6 {[%clk 0:00:10.7]} 39... fxe6 {[%clk 0:00:11.5]} 40. Rxg5+
{[%clk 0:00:11.3]} 40... Kh7 {[%clk 0:00:12.2]} 41. Re5 {[%clk 0:00:11.4]} 41...
Re2 {[%clk 0:00:12.1]} 42. Kg4 {[%clk 0:00:10.8]} 42... Rg2 {[%clk 0:00:11.5]}
43. Rxe6 {[%clk 0:00:09.6]} 43... Rgxg3+ {[%clk 0:00:12.1]} 44. Kh4 {[%clk
0:00:09.5]} 44... Re3 {[%clk 0:00:12]} 45. b5 {[%clk 0:00:08.8]} 45... Rg7
{[%clk 0:00:12]} 46. b6 {[%clk 0:00:09]} 46... Re1 {[%clk 0:00:12.4]} 47. Rc6
{[%clk 0:00:08.5]} 47... Rh1# {[%clk 0:00:12.4]} 0-1

[Event "Late-Titled-Tuesday-Blitz-March-19-2024"]
[Site "Chess.com"]
[Date "2024.03.19"]
[Round "11"]
[White "Korchmar_Vasiliy"]
[Black "Rawnsdale"]
[Result "0-1"]
[WhiteElo "2698"]
[BlackElo "2568"]
[TimeControl "180+1"]
[EndTime "16:05:08 PDT"]
[Termination "Rawnsdale won on time"]

1. e4 {[%clk 0:03:00.9]} 1... c6 {[%clk 0:02:49.2]} 2. d4 {[%clk 0:03:00.9]}
2... d5 {[%clk 0:02:50.1]} 3. exd5 {[%clk 0:03:01.7]} 3... cxd5 {[%clk
0:02:48.6]} 4. Bd3 {[%clk 0:03:02.1]} 4... Nc6 {[%clk 0:02:49]} 5. c3 {[%clk
0:03:02.3]} 5... Nf6 {[%clk 0:02:48.6]} 6. h3 {[%clk 0:03:02.6]} 6... g6 {[%clk
0:02:48.7]} 7. Nf3 {[%clk 0:03:02.6]} 7... Bg7 {[%clk 0:02:49.2]} 8. O-O {[%clk
0:02:59.4]} 8... O-O {[%clk 0:02:49.5]} 9. Bf4 {[%clk 0:02:58.8]} 9... Nh5
{[%clk 0:02:49.4]} 10. Bh2 {[%clk 0:02:56.7]} 10... Bh6 {[%clk 0:02:49.8]} 11.
Re1 {[%clk 0:02:55.5]} 11... Nf4 {[%clk 0:02:49.6]} 12. Bf1 {[%clk 0:02:55.8]}
12... Qb6 {[%clk 0:02:31]} 13. Qb3 {[%clk 0:02:46.8]} 13... Na5 {[%clk
0:02:16.2]} 14. Qxb6 {[%clk 0:02:20]} 14... axb6 {[%clk 0:02:17.1]} 15. Na3
{[%clk 0:02:18.5]} 15... Be6 {[%clk 0:02:05.8]} 16. g3 {[%clk 0:02:08.1]} 16...
Nxh3+ {[%clk 0:02:03.7]} 17. Bxh3 {[%clk 0:02:03.7]} 17... Bxh3 {[%clk
0:02:04.6]} 18. Rxe7 {[%clk 0:02:04.2]} 18... Be6 {[%clk 0:02:04.5]} 19. Ne5
{[%clk 0:01:47.9]} 19... Rfd8 {[%clk 0:02:02.6]} 20. g4 {[%clk 0:01:45.5]} 20...
Bf8 {[%clk 0:02:02.1]} 21. Rc7 {[%clk 0:01:27.4]} 21... Bd6 {[%clk 0:02:00.4]}
22. Nd3 {[%clk 0:01:24]} 22... Bxc7 {[%clk 0:01:54.6]} 23. Bxc7 {[%clk
0:01:24.9]} 23... Re8 {[%clk 0:01:53.3]} 24. Bxb6 {[%clk 0:01:25.4]} 24... Bxg4
{[%clk 0:01:51.1]} 25. Ne5 {[%clk 0:01:25.8]} 25... Be6 {[%clk 0:01:46.9]} 26.
Nb5 {[%clk 0:01:26.4]} 26... Nb3 {[%clk 0:01:40.7]} 27. Re1 {[%clk 0:01:20.8]}
27... Rxa2 {[%clk 0:01:40.3]} 28. Nc7 {[%clk 0:01:07.7]} 28... Rf8 {[%clk
0:01:17.4]} 29. Nd3 {[%clk 0:01:05.5]} 29... Bf5 {[%clk 0:01:13]} 30. Nb4 {[%clk
0:00:55.2]} 30... Rxb2 {[%clk 0:01:08.3]} 31. Ncxd5 {[%clk 0:00:55.5]} 31... Kg7
{[%clk 0:00:56.4]} 32. Kg2 {[%clk 0:00:50]} 32... Nd2 {[%clk 0:00:51.7]} 33. Kg3
{[%clk 0:00:21.2]} 33... Ne4+ {[%clk 0:00:49.4]} 34. Kf3 {[%clk 0:00:13.5]}
34... Rxf2+ {[%clk 0:00:46.8]} 35. Ke3 {[%clk 0:00:14.1]} 35... Rh2 {[%clk
0:00:43]} 36. Ne7 {[%clk 0:00:12.8]} 36... Rh3+ {[%clk 0:00:31.6]} 37. Kf4
{[%clk 0:00:13.1]} 37... Rh4+ {[%clk 0:00:22.2]} 38. Ke5 {[%clk 0:00:10.2]}
38... Nxc3 {[%clk 0:00:15.1]} 39. Nxf5+ {[%clk 0:00:09.6]} 39... gxf5 {[%clk
0:00:15.7]} 40. Kxf5 {[%clk 0:00:06.8]} 40... Nb5 {[%clk 0:00:13]} 41. Rg1+
{[%clk 0:00:05.8]} 41... Kh8 {[%clk 0:00:11.1]} 42. Bc5 {[%clk 0:00:01.9]} 42...
Rg8 {[%clk 0:00:09.4]} 43. Re1 {[%clk 0:00:02.5]} 43... Nxd4+ {[%clk 0:00:09.1]}
44. Bxd4+ {[%clk 0:00:02]} 44... Rxd4 {[%clk 0:00:10]} 0-1

[Event "Late-Titled-Tuesday-Blitz-March-19-2024"]
[Site "Chess.com"]
[Date "2024.03.19"]
[Round "11"]
[White "Yurovskykh_Oleksandr"]
[Black "Heydarli77"]
[Result "0-1"]
[WhiteElo "2581"]
[BlackElo "2420"]
[TimeControl "180+1"]
[EndTime "16:05:15 PDT"]
[Termination "Heydarli77 won on time"]

1. d4 {[%clk 0:02:55.3]} 1... d5 {[%clk 0:02:59.1]} 2. Bf4 {[%clk 0:02:50.1]}
2... Nf6 {[%clk 0:02:57.8]} 3. e3 {[%clk 0:02:49.9]} 3... e6 {[%clk 0:02:50]} 4.
Nd2 {[%clk 0:02:49.3]} 4... Bd6 {[%clk 0:02:48.7]} 5. Bg3 {[%clk 0:02:49.1]}
5... c5 {[%clk 0:02:46.8]} 6. c3 {[%clk 0:02:47.2]} 6... Nc6 {[%clk 0:02:46]} 7.
Ngf3 {[%clk 0:02:45]} 7... O-O {[%clk 0:02:42.1]} 8. Bb5 {[%clk 0:02:43.1]} 8...
a6 {[%clk 0:02:38.6]} 9. Bxc6 {[%clk 0:02:41.6]} 9... bxc6 {[%clk 0:02:38.5]}
10. Ne5 {[%clk 0:02:39.7]} 10... Bxe5 {[%clk 0:02:30.4]} 11. Bxe5 {[%clk
0:02:36.8]} 11... cxd4 {[%clk 0:02:30.6]} 12. cxd4 {[%clk 0:02:35.5]} 12... Nd7
{[%clk 0:02:28.9]} 13. Bd6 {[%clk 0:02:30.7]} 13... Re8 {[%clk 0:02:27.8]} 14.
Qc2 {[%clk 0:02:30]} 14... Bb7 {[%clk 0:02:25.3]} 15. O-O {[%clk 0:02:23.9]}
15... Rc8 {[%clk 0:02:20.3]} 16. Nb3 {[%clk 0:02:20.7]} 16... e5 {[%clk
0:02:16]} 17. dxe5 {[%clk 0:02:18.1]} 17... Nxe5 {[%clk 0:02:15.8]} 18. Bxe5
{[%clk 0:02:17.3]} 18... Rxe5 {[%clk 0:02:14.7]} 19. Nc5 {[%clk 0:02:17.8]}
19... Re7 {[%clk 0:02:02.8]} 20. Rfd1 {[%clk 0:02:13.9]} 20... Qb6 {[%clk
0:02:00.8]} 21. Rd4 {[%clk 0:02:11.7]} 21... Rcc7 {[%clk 0:01:57.4]} 22. Qc3
{[%clk 0:02:05.2]} 22... Bc8 {[%clk 0:01:55.7]} 23. Rb4 {[%clk 0:02:01.5]} 23...
Qa7 {[%clk 0:01:55.1]} 24. Rc1 {[%clk 0:01:50.5]} 24... h6 {[%clk 0:01:53.2]}
25. h3 {[%clk 0:01:48.7]} 25... Bf5 {[%clk 0:01:47]} 26. Qb3 {[%clk 0:01:41.5]}
26... Re8 {[%clk 0:01:44.9]} 27. Qa4 {[%clk 0:01:38.3]} 27... a5 {[%clk
0:01:42.1]} 28. Rb3 {[%clk 0:01:34.4]} 28... Rec8 {[%clk 0:01:40.1]} 29. Ra3
{[%clk 0:01:31.1]} 29... Qb6 {[%clk 0:01:40.2]} 30. b3 {[%clk 0:01:26.7]} 30...
Ra7 {[%clk 0:01:34.6]} 31. Qd4 {[%clk 0:01:26.4]} 31... Rac7 {[%clk 0:01:30.7]}
32. Ra4 {[%clk 0:01:24.2]} 32... Qb5 {[%clk 0:01:27.7]} 33. Qd2 {[%clk 0:01:21]}
33... Ra7 {[%clk 0:01:24.2]} 34. Rf4 {[%clk 0:01:09.3]} 34... Bg6 {[%clk
0:01:21]} 35. Rd4 {[%clk 0:01:09.7]} 35... Rca8 {[%clk 0:01:15.3]} 36. Na4
{[%clk 0:01:09.3]} 36... Rc7 {[%clk 0:01:11.5]} 37. Rc5 {[%clk 0:01:08]} 37...
Qb7 {[%clk 0:01:07.6]} 38. Rxa5 {[%clk 0:01:01.3]} 38... Rxa5 {[%clk 0:01:07.3]}
39. Qxa5 {[%clk 0:01:02.2]} 39... c5 {[%clk 0:00:59.2]} 40. Nxc5 {[%clk
0:00:55.5]} 40... Qc8 {[%clk 0:00:57.2]} 41. b4 {[%clk 0:00:52.1]} 41... Re7
{[%clk 0:00:51.9]} 42. Qb6 {[%clk 0:00:34.3]} 42... Kh7 {[%clk 0:00:47.8]} 43.
Rxd5 {[%clk 0:00:32]} 43... Qa8 {[%clk 0:00:47.8]} 44. Rd2 {[%clk 0:00:30]}
44... Qa3 {[%clk 0:00:46]} 45. Qd6 {[%clk 0:00:21.9]} 45... Qxb4 {[%clk
0:00:42.7]} 46. Qxe7 {[%clk 0:00:19]} 46... Qxd2 {[%clk 0:00:42.8]} 47. a4
{[%clk 0:00:09.4]} 47... Qe1+ {[%clk 0:00:42.3]} 48. Kh2 {[%clk 0:00:09.4]}
48... Qxf2 {[%clk 0:00:42.6]} 49. Qe5 {[%clk 0:00:08.5]} 49... Qd2 {[%clk
0:00:37.3]} 50. Qd4 {[%clk 0:00:08.4]} 50... Qa5 {[%clk 0:00:36.2]} 51. Nb3
{[%clk 0:00:06.4]} 51... Qc7+ {[%clk 0:00:33.2]} 52. Qf4 {[%clk 0:00:03.6]}
52... Qc2 {[%clk 0:00:32.9]} 53. Na5 {[%clk 0:00:01.3]} 53... Be4 {[%clk
0:00:31.7]} 0-1